bitfinex-derivatives/quotes_ETHF0:USTF0_20250317
["timestamp","ask_amount","ask_price","bid_price","bid_amount"]
[1742233546643,2.45953276,1933.5,1933.4,1.3347]
[1742233546852,2.5440091,1933.5,1933.4,1.3347]
[1742233547553,2.54401309,1933.5,1933.4,1.3347]
[1742233549953,1.03452,1933.4,1933.2,1.3895]
[1742233550155,3.12282,1933.4,1933.3,1.4317]
[1742233550358,3.20730345,1933.4,1933.3,1.4317]
[1742233550752,3.20730314,1933.4,1933.3,1.4317]
[1742233551748,0.00776276,1933.5,1933.3,1.4317]
[1742233551952,0.00776276,1933.5,1933.3,5.67406]
[1742233552156,0.00776276,1933.5,1933.3,2.46626]
[1742233552448,0.00776276,1933.5,1933.4,1.4317]
[1742233553754,0.00776276,1933.5,1933.4,2.46622]
[1742233553955,0.00776276,1933.5,1933.4,5.98722]
[1742233554361,0.00776276,1933.5,1933.4,11.95322]
[1742233554852,0.81556,1933.6,1933.5,1.03447]
[1742233555059,1.03429,1933.9,1933.7,1.03431]
[1742233555257,1.03429,1933.9,1933.8,2.1324]
[1742233555848,2.49014545,1933.9,1933.8,2.1324]
[1742233556059,2.49014774,1933.9,1933.8,1.4411]
[1742233556759,1.03431,1933.8,1933.7,0.00776276]
[1742233556961,2.43226774,1933.8,1933.7,0.00776276]
[1742233558049,5.95226774,1933.8,1933.7,0.00776276]
[1742233558262,1.03463,1933.2,1933.1,1.2932]
[1742233558751,1.11912601,1933.2,1933.1,1.2932]
[1742233558954,2.43262601,1933.2,1933.1,1.2932]
[1742233559664,1.03469,1933.1,1933.0,1.45446276]
[1742233559957,2.4383905,1933.1,1933.0,1.45446276]
[1742233560255,5.56169,1933.1,1933.0,1.45446276]
[1742233560459,1.03485,1932.8,1932.7,5.966]
[1742233560661,1.03485,1932.8,1932.5,10.6073]
[1742233560864,1.0349,1932.7,1932.5,10.6073]
[1742233561057,3.2078,1932.9,1932.5,10.6073]
[1742233561259,1.03494,1932.7,1932.5,10.6073]
[1742233561555,1.75669,1932.8,1932.5,11.64228]
[1742233561759,1.3192,1932.7,1932.6,1.3862]
[1742233561954,1.32696276,1932.8,1932.6,2.42114]
[1742233562163,0.00776276,1932.8,1932.7,1.0349]
[1742233562460,0.00776276,1932.8,1932.7,1.4205]
[1742233562660,0.00776276,1932.8,1932.7,2.4554]
[1742233562861,0.00776276,1932.8,1932.7,1.4205]
[1742233563262,1.04261276,1932.8,1932.7,1.4205]
[1742233563559,2.46791276,1932.8,1932.7,1.4205]
[1742233563757,1.03495,1932.6,1932.5,7.3865]
[1742233564855,1.70635,1932.6,1932.5,7.3865]
[1742233565057,3.13165,1932.6,1932.5,1.4205]
[1742233566862,2.46025,1932.6,1932.5,1.4205]
[1742233569260,2.54477215,1932.6,1932.5,1.4205]
[1742233569460,2.46025,1932.6,1932.5,1.4205]
[1742233570567,6.7288,1932.7,1932.5,1.4205]
[1742233570863,2.42795,1932.6,1932.5,1.4205]
[1742233572666,2.51247091,1932.6,1932.5,1.4205]
[1742233573060,1.03501,1932.5,1932.4,0.00776276]
[1742233573364,6.0784359,1932.5,1932.4,0.00776276]
[1742233573565,5.99391,1932.5,1932.4,0.00776276]
[1742233573762,4.9589,1932.5,1932.4,0.00776276]
[1742233573961,3.521,1932.5,1932.4,0.00776276]
[1742233574163,2.47288,1932.6,1932.4,0.00776276]
[1742233574354,1.03498,1932.6,1932.4,1.31806276]
[1742233574560,1.03501,1932.5,1932.4,1.31806276]
[1742233575464,1.3449,1932.6,1932.4,1.31806276]
[1742233575766,1.3449,1932.6,1932.4,2.35311276]
[1742233575965,2.37989,1932.6,1932.4,2.35311276]
[1742233576168,2.37989,1932.6,1932.5,1.3103]
[1742233578271,2.37989,1932.6,1932.4,0.00776276]
[1742233578272,1.03501,1932.5,1932.4,0.00776276]
[1742233578569,1.3109,1932.5,1932.4,0.00776276]
[1742233578767,2.34591,1932.5,1932.4,1.44876276]
[1742233578961,6.7288,1932.7,1932.4,1.44876276]
[1742233579162,1.03498,1932.6,1932.4,2.48380276]
[1742233579365,1.03498,1932.6,1932.5,1.441]
[1742233580975,2.48278,1932.6,1932.5,1.441]
[1742233586888,1.4478,1932.6,1932.5,1.441]
[1742233587088,2.48275,1932.6,1932.5,1.441]
[1742233588289,2.56726798,1932.6,1932.5,1.441]
[1742233588992,2.5672694,1932.6,1932.5,1.441]
[1742233589887,2.48275,1932.6,1932.5,1.441]
[1742233591095,2.56727042,1932.6,1932.5,1.441]
[1742233593382,2.56727042,1932.6,1932.4,0.00776276]
[1742233593383,1.03501,1932.5,1932.4,0.00776276]
[1742233593592,2.41431,1932.5,1932.4,0.00776276]
[1742233594298,1.03511,1932.3,1932.2,11.47633]
[1742233594499,1.03511,1932.3,1932.2,5.51033]
[1742233594692,1.03522,1932.1,1932.0,1.4945]
[1742233594899,1.03522,1932.1,1932.0,2.1899]
[1742233595195,1.03522,1932.1,1932.0,1.4118]
[1742233595992,1.03522,1932.1,1932.0,2.8629]
[1742233596198,1.03522,1932.1,1932.0,2.1465]
[1742233596493,1.03527,1932.0,1931.9,6.66736276]
[1742233596697,3.03577,1932.0,1931.9,8.11846276]
[1742233597094,3.03577,1932.0,1931.9,7.42486276]
[1742233598196,3.03577,1932.0,1931.9,9.49536276]
[1742233599087,3.03577,1932.0,1931.9,2.07826276]
[1742233599697,3.12032013,1932.0,1931.9,3.44386276]
[1742233599900,3.12032013,1932.0,1931.9,2.07826276]
[1742233599901,6.64032013,1932.0,1931.9,2.07826276]
[1742233600203,1.03544,1931.7,1931.6,1.3656]
[1742233600398,4.55542,1931.8,1931.6,1.3656]
[1742233600596,1.4495,1931.8,1931.7,1.03544]
[1742233600797,5.21822,1932.0,1931.7,1.03542]
[1742233601091,6.66771,1932.0,1931.8,2.0485]
[1742233601296,1.4495,1931.9,1931.8,0.6829]
[1742233601601,5.21821,1932.0,1931.8,1.71826]
[1742233601602,4.55528,1932.0,1931.8,1.71826]
[1742233601798,1.03533,1931.9,1931.8,0.6829]
[1742233602006,2.44643,1931.9,1931.8,0.6829]
[1742233602199,1.4111,1931.9,1931.8,0.6829]
[1742233602498,1.03528,1932.0,1931.8,1.71824]
[1742233602699,8.1389,1932.1,1931.7,0.00517524]
[1742233602906,1.4111,1931.9,1931.6,9.1738]
[1742233603103,2.44643,1931.9,1931.7,1.71331]
[1742233603296,1.4111,1931.9,1931.8,1.03538]
[1742233603602,1.03533,1931.9,1931.7,0.6779]
[1742233603801,1.03534,1931.9,1931.7,1.71332]
[1742233604001,6.7278,1932.1,1931.7,0.6779]
[1742233604201,1.03529,1932.0,1931.8,1.03534]
[1742233605309,1.03533,1931.9,1931.7,1.71332]
[1742233605698,1.03538,1931.8,1931.7,0.6779]
[1742233606003,1.03535,1931.9,1931.8,1.03538]
[1742233606406,1.03535,1931.9,1931.7,1.71329]
[1742233606711,1.03538,1931.8,1931.7,0.6779]
[1742233607108,1.03538,1931.8,1931.7,1.71334]
[1742233607310,1.03538,1931.8,1931.7,0.6779]
[1742233607711,1.03538,1931.8,1931.7,1.71329]
[1742233608010,1.03538,1931.8,1931.7,0.6779]
[1742233608902,5.7959,1932.1,1931.7,0.6779]
[1742233609102,1.03538,1931.8,1931.7,0.6779]
[1742233610613,1.03536,1931.9,1931.7,1.71331]
[1742233611310,1.03536,1931.9,1931.7,1.71329]
[1742233611613,3.52,1932.0,1931.7,0.6779]
[1742233611808,3.52,1932.0,1931.8,1.03537]
[1742233612314,4.55531,1932.0,1931.8,1.03537]
[1742233613411,1.03533,1931.9,1931.8,1.03537]
[1742233613612,1.03533,1931.9,1931.8,1.69897]
[1742233613811,1.03533,1931.9,1931.8,0.6636]
[1742233614510,1.03538,1931.8,1931.7,0.6779]
[1742233614712,1.03538,1931.8,1931.7,1.391]
[1742233614910,1.03544,1931.7,1931.6,9.1738]
[1742233615212,1.72604,1931.7,1931.6,9.1738]
[1742233615610,0.6906,1931.7,1931.6,10.20929]
[1742233615811,1.72604,1931.7,1931.6,10.20929]
[1742233616001,1.72604,1931.7,1931.6,9.1738]
[1742233616306,0.6906,1931.7,1931.6,11.60589]
[1742233616513,1.72604,1931.7,1931.6,10.5704]
[1742233616716,3.07534,1931.7,1931.6,10.5704]
[1742233617606,3.07534,1931.7,1931.6,7.3626]
[1742233618410,3.07534,1931.7,1931.6,1.3966]
[1742233619713,1.0356,1931.4,1931.3,7.2604]
[1742233619912,1.03565,1931.3,1931.2,1.3075]
[1742233620216,3.77635,1931.3,1931.2,1.3075]
[1742233621105,3.8609336,1931.3,1931.2,1.3075]
[1742233621917,3.77635,1931.3,1931.2,1.3075]
[1742233622221,7.06873441,1931.3,1931.2,1.3075]
[1742233622517,1.03584,1931.0,1930.8,3.2078]
[1742233622715,1.03579,1931.1,1930.9,0.6992]
[1742233622913,5.93042,1931.2,1930.9,1.73504]
[1742233623113,4.55572,1931.2,1930.9,1.73504]
[1742233623515,1.03576,1931.1,1930.9,0.6992]
[1742233623710,1.3208,1931.1,1931.0,1.4282]
[1742233623912,5.87653,1931.2,1931.0,1.4282]
[1742233624113,0.7012,1931.3,1931.1,0.6867]
[1742233624308,1.73688,1931.3,1931.2,2.1024]
[1742233624514,0.7012,1931.3,1931.2,2.1024]
[1742233624717,0.00776276,1931.5,1931.2,5.3102]
[1742233625012,6.7278,1932.1,1931.4,3.2078]
[1742233625214,1.0354,1931.8,1931.6,1.03547]
[1742233625420,1.03537,1931.9,1931.7,3.13783]
[1742233625722,1.03537,1931.9,1931.8,1.4282]
[1742233627721,2.36387276,1932.0,1931.8,1.4282]
[1742233628220,2.44953,1931.9,1931.8,1.4282]
[1742233629325,2.53408439,1931.9,1931.8,1.4282]
[1742233629917,2.53408784,1931.9,1931.8,1.4282]
[1742233630618,1.4142,1931.9,1931.8,2.46358]
[1742233631522,0.00776276,1932.0,1931.8,2.46358]
[1742233631822,0.00776276,1932.0,1931.9,2.0328]
[1742233632229,1.33286276,1932.0,1931.9,2.0328]
[1742233632618,2.36813276,1932.0,1931.9,2.0328]
[1742233632918,1.33286276,1932.0,1931.9,2.0328]
[1742233634026,2.36813276,1932.0,1931.9,2.0328]
[1742233634724,1.33286276,1932.0,1931.9,2.0328]
[1742233635424,0.00776276,1932.0,1931.9,3.06813]
[1742233635824,0.00776276,1932.0,1931.9,6.58713]
[1742233637027,1.03514,1932.3,1932.1,1.03521]
[1742233637229,1.03514,1932.3,1932.2,2.0809]
[1742233638129,3.14215276,1932.4,1932.2,2.0809]
[1742233638333,3.14215276,1932.4,1932.3,2.1033]
[1742233638833,0.00776276,1932.4,1932.3,2.1033]
[1742233639037,1.04282276,1932.4,1932.3,2.1033]
[1742233639232,1.39666276,1932.4,1932.3,2.1033]
[1742233639422,2.43172276,1932.4,1932.3,2.1033]
[1742233639932,1.39666276,1932.4,1932.3,2.1033]
[1742233640325,2.43172276,1932.4,1932.3,2.1033]
[1742233641428,2.43172276,1932.4,1932.3,1.4036]
[1742233642333,1.39666276,1932.4,1932.3,1.4036]
[1742233642531,2.43172276,1932.4,1932.3,1.4036]
[1742233643236,1.39666276,1932.4,1932.3,1.4036]
[1742233644327,2.43172276,1932.4,1932.3,1.4036]
[1742233645036,0.00776276,1932.4,1932.3,2.43871]
[1742233645237,1.04282276,1932.4,1932.3,1.4036]
[1742233645437,2.46102276,1932.4,1932.3,1.4036]
[1742233649242,0.00776276,1932.4,1932.3,1.4036]
[1742233649437,0.00776276,1932.4,1932.3,2.43871]
[1742233649945,0.00776276,1932.4,1932.3,1.4036]
[1742233650242,1.04282276,1932.4,1932.3,1.4036]
[1742233650437,2.35712276,1932.4,1932.3,1.4036]
[1742233651133,1.40659454,1932.4,1932.2,1.2938]
[1742233651341,2.52394402,1932.3,1932.2,1.01522979]
[1742233651546,1.03527,1932.0,1931.9,8.2588]
[1742233651839,1.11980402,1932.0,1931.9,7.2726]
[1742233652232,2.43957,1932.0,1931.9,7.2726]
[1742233652439,2.52411697,1932.0,1931.9,7.2726]
[1742233652742,2.52411761,1932.0,1931.9,7.2726]
[1742233652936,2.43957,1932.0,1931.9,1.3066]
[1742233654443,3.10059,1932.2,1931.9,4.5144]
[1742233654637,1.69389,1932.2,1932.0,1.4199]
[1742233654833,1.69389,1932.2,1932.0,2.833]
[1742233655033,2.0654,1932.2,1932.0,2.833]
[1742233655233,1.03522,1932.1,1932.0,1.4199]
[1742233655940,2.44192,1932.1,1932.0,1.4199]
[1742233656447,1.03522,1932.1,1932.0,1.4199]
[1742233656833,2.0757,1932.2,1932.0,1.4199]
[1742233657043,3.517,1932.3,1932.1,1.03522]
[1742233657235,1.03511,1932.3,1932.1,1.03522]
[1742233657637,1.42476276,1932.4,1932.0,2.45514]
[1742233657846,1.03521,1932.2,1932.0,2.45514]
[1742233658344,1.03521,1932.2,1932.1,1.03522]
[1742233658540,1.03522,1932.1,1932.0,1.4199]
[1742233658746,1.03513,1932.3,1932.2,1.03514]
[1742233659045,1.03513,1932.3,1932.1,4.24297]
[1742233659246,1.03517,1932.2,1932.1,4.24297]
[1742233659549,1.03517,1932.2,1932.1,4.24302]
[1742233659740,1.42476276,1932.4,1932.1,4.24302]
[1742233660038,1.04286276,1932.4,1932.1,12.6908]
[1742233660246,0.00776276,1932.4,1932.3,4.24291]
[1742233660635,0.00776276,1932.4,1932.3,3.2078]
[1742233660636,1.04282276,1932.4,1932.3,3.2078]
[1742233660949,1.04282276,1932.4,1932.2,1.03513]
[1742233660950,1.03516,1932.3,1932.2,1.03517]
[1742233661340,1.03516,1932.3,1932.1,13.72598]
[1742233661537,1.03512,1932.3,1932.1,13.72598]
[1742233661838,1.04286276,1932.4,1932.1,13.72598]
[1742233662342,1.03517,1932.2,1932.1,12.6908]
[1742233662546,1.03517,1932.2,1932.1,9.1738]
[1742233662954,2.42397,1932.2,1932.1,9.1738]
[1742233663248,1.3888,1932.2,1931.8,10.20918]
[1742233663545,1.0353,1932.0,1931.8,11.63528]
[1742233663746,1.3888,1931.9,1931.8,11.63528]
[1742233664543,1.03526,1932.1,1931.8,11.63528]
[1742233664742,1.03528,1932.0,1931.9,1.03533]
[1742233664941,1.03528,1932.0,1931.8,11.63524]
[1742233665150,1.03528,1932.0,1931.8,10.5999]
[1742233665343,1.03528,1932.0,1931.8,11.63524]
[1742233665851,2.42405,1932.1,1931.9,1.0353]
[1742233666253,2.42405,1932.1,1932.0,1.3701]
[1742233668661,3.8861,1932.3,1932.0,1.3701]
[1742233668965,4.55884276,1932.4,1932.2,1.03513]
[1742233669167,1.04284276,1932.4,1932.3,2.0729]
[1742233669465,0.00776276,1932.4,1932.3,3.10801]
[1742233672368,43.21519,1932.8,1932.6,1.03493]
[1742233672669,0.6618,1932.9,1932.8,1.03485]
[1742233672863,1.03479,1932.9,1932.8,1.03485]
[1742233673059,4.8963,1933.0,1932.8,2.0169]
[1742233673264,1.03479,1932.9,1932.8,2.0169]
[1742233673572,43.21507,1933.0,1932.8,1.70922]
[1742233673766,42.1803,1933.0,1932.9,1.03479]
[1742233673972,40.8,1933.0,1932.9,1.03479]
[1742233674269,2.42275276,1933.1,1933.0,1.03474]
[1742233674469,0.00776276,1933.1,1933.0,1.03474]
[1742233676373,1.04245276,1933.1,1932.9,4.93695]
[1742233676768,2.44098276,1933.1,1932.9,4.93695]
[1742233677571,1.3985,1933.0,1932.9,4.93695]
[1742233679383,1.3985,1933.0,1932.9,3.9022]
[1742233679569,1.3985,1933.0,1932.9,4.93699]
[1742233679879,1.3985,1933.0,1932.9,3.9022]
[1742233680080,1.3985,1933.0,1932.9,4.93699]
[1742233680281,0.00776276,1933.1,1932.9,3.9022]
[1742233680476,0.00776276,1933.1,1933.0,1.03474]
[1742233680785,1.04245276,1933.1,1932.9,4.93696]
[1742233681080,1.41186276,1933.1,1933.0,1.03474]
[1742233681273,2.44655276,1933.1,1932.9,4.93696]
[1742233681473,1.41186276,1933.1,1933.0,1.03474]
[1742233682080,0.00776276,1933.1,1933.0,1.03474]
[1742233682276,1.04245276,1933.1,1932.9,4.93697]
[1742233682583,2.44655276,1933.1,1932.9,4.93697]
[1742233683081,1.03474,1933.0,1932.9,0.6944]
[1742233683380,2.43884,1933.0,1932.9,0.6944]
[1742233684080,2.43884,1933.0,1932.7,3.21556276]
[1742233684081,1.03485,1932.8,1932.7,3.21556276]
[1742233684674,3.00755,1932.8,1932.7,3.21556276]
[1742233684983,3.00755,1932.8,1932.7,0.00776276]
[1742233685183,6.21535,1932.8,1932.7,0.00776276]
[1742233685482,8.79986401,1932.8,1932.7,0.00776276]
[1742233685983,6.21535,1932.8,1932.7,0.00776276]
[1742233686281,1.9727,1932.8,1932.7,1.04266276]
[1742233686675,1.9727,1932.8,1932.7,0.69386276]
[1742233686871,3.00755,1932.8,1932.7,2.08476276]
[1742233687377,3.00755,1932.8,1932.7,0.00776276]
[1742233687677,3.71255,1932.8,1932.7,0.00776276]
[1742233688080,7.00485809,1932.8,1932.7,0.00776276]
[1742233688470,3.71255,1932.8,1932.7,0.00776276]
[1742233688679,6.21535,1932.8,1932.7,0.00776276]
[1742233688881,3.00755,1932.8,1932.7,0.00776276]
[1742233689982,1.9727,1932.8,1932.7,3.21556276]
[1742233690281,4.54879,1932.9,1932.7,2.08166276]
[1742233690480,5.94139,1932.9,1932.8,1.3943]
[1742233692681,5.94139,1932.9,1932.8,3.4638]
[1742233695571,6.02589537,1932.9,1932.8,2.0695]
[1742233696678,6.02589537,1932.9,1932.8,0.93358092]
[1742233697181,1.03485,1932.8,1932.7,0.00776276]
[1742233697380,5.72715537,1932.8,1932.7,0.00776276]
[1742233697580,2.43485,1932.8,1932.7,0.99366276]
[1742233697881,5.94885,1932.8,1932.7,0.99366276]
[1742233699886,6.03335839,1932.8,1932.7,0.99366276]
[1742233700486,5.94885,1932.8,1932.7,0.99366276]
[1742233701088,7.403,1933.0,1932.7,0.99366276]
[1742233701287,1.03479,1932.9,1932.8,2.0879]
[1742233701789,6.29298,1933.0,1932.8,3.12273]
[1742233702080,0.00776276,1933.1,1932.9,1.4039]
[1742233702284,1.04245276,1933.1,1932.9,2.43866]
[1742233702480,0.00776276,1933.1,1933.0,5.60174]
[1742233702685,6.32016,1933.4,1933.1,1.03465]
[1742233702884,4.24236,1933.4,1933.2,2.7413]
[1742233703084,45.04236,1933.4,1933.3,1.3592]
[1742233703586,4.24236,1933.4,1933.3,1.3592]
[1742233703775,2.41191,1933.5,1933.3,1.3592]
[1742233703981,43.21967276,1933.5,1933.3,1.3592]
[1742233704284,0.00776276,1933.5,1933.3,1.3592]
[1742233704482,3.2078,1933.9,1933.4,6.7208]
[1742233704687,3.2078,1933.9,1933.5,1.03444]
[1742233704982,1.03442,1933.6,1933.4,13.72129]
[1742233705179,1.0344,1933.7,1933.5,1.03447]
[1742233705374,1.0344,1933.7,1933.6,0.7159]
[1742233706588,1.03447,1933.5,1933.4,5.966]
[1742233706783,1.03447,1933.5,1933.3,4.2164]
[1742233707483,1.03452,1933.4,1933.3,4.2164]
[1742233707685,1.03451,1933.5,1933.4,1.3959]
[1742233709183,2.40226,1933.6,1933.4,1.3959]
[1742233709589,2.41327,1933.5,1933.4,1.3959]
[1742233710685,1.03444,1933.6,1933.4,1.3959]
[1742233710885,2.41324,1933.6,1933.5,0.6923]
[1742233711595,1.3788,1933.6,1933.5,0.6923]
[1742233711891,2.41322,1933.6,1933.5,0.6923]
[1742233712589,1.03442,1933.6,1933.5,0.6923]
[1742233713190,2.36139,1933.7,1933.5,1.72677]
[1742233713390,1.03436,1933.7,1933.6,1.3399]
[1742233713688,0.00776276,1933.8,1933.6,1.3399]
[1742233713892,1.04208276,1933.8,1933.7,0.6638]
[1742233714084,2.36908276,1933.8,1933.7,0.6638]
[1742233714485,1.04208276,1933.8,1933.7,0.6638]
[1742233714781,1.04208276,1933.8,1933.7,1.9791]
[1742233715089,1.04208276,1933.8,1933.7,2.9646]
[1742233715391,2.38548276,1933.8,1933.7,2.9646]
[1742233717080,0.00776276,1933.8,1933.7,2.9646]
[1742233717485,1.04207276,1933.8,1933.7,2.9646]
[1742233718185,0.00776276,1933.8,1933.7,7.20676]
[1742233721786,0.00776276,1933.8,1933.7,10.71776]
[1742233723091,1.03418,1934.1,1934.0,1.0342]
[1742233723291,6.7188,1934.3,1934.0,1.0342]
[1742233723292,2.45052,1934.2,1934.0,1.0342]
[1742233723495,2.45052,1934.2,1934.1,2.0611]
[1742233723698,43.25052,1934.2,1934.1,2.0611]
[1742233723992,2.45052,1934.2,1934.1,1.407]
[1742233725291,3.16982,1934.2,1934.1,1.407]
[1742233725601,1.03415,1934.1,1934.0,0.00776276]
[1742233725791,2.44365,1934.1,1934.0,1.39766276]
[1742233726195,1.4095,1934.1,1934.0,1.39766276]
[1742233726399,1.4095,1934.1,1934.0,2.43186276]
[1742233727201,1.4095,1934.1,1934.0,1.39766276]
[1742233727699,1.4095,1934.1,1934.0,2.43186276]
[1742233727895,2.44365,1934.1,1934.0,1.39766276]
[1742233728203,1.4095,1934.1,1934.0,2.43186276]
[1742233728695,1.03923524,1934.3,1934.1,1.03413]
[1742233728896,1.3885,1934.2,1934.1,1.03413]
[1742233729096,1.3885,1934.2,1934.0,1.04193276]
[1742233729292,0.00517524,1934.3,1934.1,1.03415]
[1742233729492,0.00517524,1934.3,1934.2,1.0341]
[1742233729698,0.00517524,1934.3,1934.2,1.7236]
[1742233731197,1.03921524,1934.3,1934.2,1.7236]
[1742233731392,0.00517524,1934.3,1934.2,1.7236]
[1742233733205,1.03921524,1934.3,1934.2,1.7236]
[1742233733606,1.03921524,1934.3,1934.2,0.6895]
[1742233733802,1.0341,1934.2,1934.1,15.00941]
[1742233734107,2.3984,1934.2,1934.1,15.00941]
[1742233734504,2.3984,1934.2,1934.1,7.2585]
[1742233734806,3.0692,1934.2,1934.1,7.2585]
[1742233736495,3.0692,1934.2,1934.1,5.966]
[1742233736798,1.03415,1934.1,1934.0,0.00776276]
[1742233736998,3.16575,1934.1,1934.0,0.00776276]
[1742233737402,0.00517524,1934.3,1934.0,0.00776276]
[1742233737709,2.45753524,1934.3,1934.1,1.03411]
[1742233737898,1.4183,1934.2,1934.1,1.03411]
[1742233738208,1.03415,1934.1,1934.0,0.99346276]
[1742233738402,1.73085,1934.1,1934.0,0.99346276]
[1742233738610,0.6967,1934.1,1934.0,2.02766276]
[1742233739705,1.73085,1934.1,1934.0,2.28606276]
[1742233740304,0.6967,1934.1,1934.0,2.28606276]
[1742233740607,0.6967,1934.1,1934.0,3.32026276]
[1742233740913,1.73085,1934.1,1934.0,2.28606276]
[1742233741804,3.09235,1934.1,1934.0,2.28606276]
[1742233743110,3.17679987,1934.1,1934.0,2.27829999]
[1742233743413,6.38459987,1934.1,1934.0,1.2926]
[1742233743603,47.18459987,1934.1,1934.0,1.2926]
[1742233743805,47.18459987,1934.1,1934.0,0.4754]
[1742233743806,49.68459987,1934.1,1934.0,0.4754]
[1742233744000,2.58558,1934.0,1933.5,1.69367]
[1742233744210,6.80024987,1933.9,1933.5,0.6592]
[1742233744408,8.0773,1933.9,1933.6,0.00776276]
[1742233744610,1.3615,1933.8,1933.6,1.70625276]
[1742233745003,2.39583,1933.8,1933.6,1.70625276]
[1742233745209,3.508,1933.9,1933.8,1.03431]
[1742233745511,1.03421,1934.0,1933.8,1.03431]
[1742233745512,2.47432,1934.0,1933.8,1.03428]
[1742233746014,2.47432,1934.0,1933.9,0.6908]
[1742233746213,2.47432,1934.0,1933.9,2.0313]
[1742233746511,2.4743,1934.0,1933.9,2.0313]
[1742233746705,1.4401,1934.0,1933.9,3.06556]
[1742233747310,1.4401,1934.0,1933.9,2.0313]
[1742233747311,2.4743,1934.0,1933.9,2.0313]
[1742233747807,1.4401,1934.0,1933.9,2.0313]
[1742233748114,1.4401,1934.0,1933.9,3.06556]
[1742233748313,2.4743,1934.0,1933.9,2.0313]
[1742233748513,2.4743,1934.0,1933.9,3.06556]
[1742233748908,2.4743,1934.0,1933.9,2.0313]
[1742233751011,1.4401,1934.0,1933.9,2.0313]
[1742233751214,2.4743,1934.0,1933.9,2.0313]
[1742233752217,1.4401,1934.0,1933.9,3.06556]
[1742233752414,4.24192,1934.2,1934.0,1.0342]
[1742233752619,2.47412,1934.2,1934.0,3.0621]
[1742233752811,2.47412,1934.2,1934.0,3.06206]
[1742233753115,2.47412,1934.2,1934.1,1.3487]
[1742233753320,1.03412,1934.2,1934.1,1.3487]
[1742233754317,0.00517524,1934.3,1934.1,2.38282]
[1742233754620,0.00517524,1934.3,1934.2,3.0156]
[1742233755412,0.00517524,1934.3,1934.2,6.5236]
[1742233757321,1.03392,1934.6,1934.4,1.03395]
[1742233757619,1.03392,1934.6,1934.5,2.34614]
[1742233757811,1.03392,1934.6,1934.5,1.3122]
[1742233758420,1.11834354,1934.6,1934.5,1.3122]
[1742233758620,1.11834383,1934.6,1934.5,1.3122]
[1742233759014,4.54962276,1934.7,1934.5,2.34614]
[1742233759322,1.04162276,1934.7,1934.5,2.34614]
[1742233759522,1.04162276,1934.7,1934.6,1.3122]
[1742233759721,0.00776276,1934.7,1934.6,2.34608]
[1742233760417,0.00776276,1934.7,1934.6,3.04728]
[1742233761023,1.04159276,1934.7,1934.6,2.0134]
[1742233761716,0.00776276,1934.7,1934.6,2.0134]
[1742233762230,0.00776276,1934.7,1934.6,3.04728]
[1742233762523,1.04159276,1934.7,1934.6,3.04728]
[1742233762815,0.00776276,1934.7,1934.6,3.04728]
[1742233763021,1.04159276,1934.7,1934.6,2.0134]
[1742233763216,1.04159276,1934.7,1934.6,1.3122]
[1742233763417,1.12601423,1934.7,1934.6,1.3122]
[1742233763618,1.12601423,1934.7,1934.6,0.6034208]
[1742233763918,1.03394,1934.5,1934.4,0.6807]
[1742233764314,1.03394,1934.5,1934.3,1.03401]
[1742233765322,1.03394,1934.5,1934.3,1.03402]
[1742233765524,1.03394,1934.5,1934.3,1.03401]
[1742233766022,3.51376276,1934.7,1934.2,4.92256]
[1742233766023,1.03399,1934.4,1934.2,4.92256]
[1742233766213,1.3683,1934.4,1934.3,1.03404]
[1742233766421,2.40231,1934.4,1934.2,4.92259]
[1742233766622,1.03404,1934.3,1934.2,0.6807]
[1742233766922,3.06034,1934.3,1934.2,2.1179]
[1742233768422,3.06034,1934.3,1934.0,7.4361]
[1742233768423,1.03415,1934.1,1933.8,9.1738]
[1742233768619,1.03415,1934.1,1933.9,6.65094]
[1742233768829,1.03415,1934.1,1934.0,1.4372]
[1742233769130,2.40242,1934.2,1934.0,2.4714]
[1742233769319,2.40242,1934.2,1934.0,1.4372]
[1742233769621,1.03412,1934.2,1934.1,1.3555]
[1742233770422,3.506,1934.3,1934.2,1.0341]
[1742233770725,4.24175,1934.5,1934.3,1.03403]
[1742233770930,4.24175,1934.5,1934.4,1.3555]
[1742233771723,1.03395,1934.5,1934.4,1.3555]
[1742233772026,0.6834,1934.6,1934.4,1.3555]
[1742233772216,1.71733,1934.6,1934.4,2.38948]
[1742233772624,1.71733,1934.6,1934.5,2.0809]
[1742233774528,1.80175099,1934.6,1934.5,2.0809]
[1742233775519,1.80175292,1934.6,1934.5,2.0809]
[1742233775820,1.71733,1934.6,1934.5,2.0809]
[1742233778829,1.71728,1934.6,1934.5,2.0809]
[1742233780122,0.6834,1934.6,1934.5,2.0809]
[1742233780926,4.24941276,1934.7,1934.5,3.1148]
[1742233781225,4.24941276,1934.7,1934.6,1.3293]
[1742233784630,4.24941276,1934.7,1934.6,2.0326]
[1742233785421,3.21556276,1934.7,1934.6,3.06648]
[1742233786031,3.21556276,1934.7,1934.6,2.0326]
[1742233786233,5.67729276,1934.7,1934.6,2.0326]
[1742233786833,5.67729276,1934.7,1934.6,1.3293]
[1742233791438,5.76171208,1934.7,1934.6,1.3293]
[1742233792535,5.76171208,1934.7,1934.6,0.62376049]
[1742233792746,5.67729276,1934.7,1934.6,0.62376049]
[1742233793440,5.67729276,1934.7,1934.6,2.69136049]
[1742233793836,5.67729276,1934.7,1934.6,3.72524049]
[1742233794042,5.67729276,1934.7,1934.6,2.69136049]
[1742233794745,2.46949276,1934.7,1934.6,2.69136049]
[1742233795044,1.43566276,1934.7,1934.6,3.72524049]
[1742233795542,1.43566276,1934.7,1934.6,6.93304049]
[1742233796230,0.00776276,1934.7,1934.6,6.93304049]
[1742233796437,1.3741,1935.0,1934.9,1.03372]
[1742233796636,2.40777,1935.0,1934.9,1.03372]